Workbook

Sheet Лист1
A1: Детали находащиеся на молярном участке на 24.11.2014г.
A2: Изделие | C2: Номер детали | D2: Кол-во ШТ.
A3: Уступ | B3: Лдиг | C3: 741124335-01 | D3: 30
A4: Уступ 2 | B4: Лдиг | C4: 711114008-2 | D4: 50
A5: Уступ 2 | B5: Яиуш | C5: 735214036-01 | D5: 14
A6: Уступ | B6: Лдиг | C6: 301318005 | D6: 13
A7: Уступ | B7: Виур | C7: 735391001-02 | D7: 1000
A8: Уступ | B8: Увир | C8: 745512161-01 | D8: 740
A9: Уступ | B9: Виур | C9: 735391002-02 | D9: 1350
A10: Уступ | B10: Рж | C10: 8052874 | D10: 53
A11: Аппарат 1и | B11: Яиуш | C11: 746114001 | D11: 219
A12: Аппарат 1и | B12: Яиуш | C12: 741542032 | D12: 150
A13: Аппарат 1и | B13: Яиуш | C13: 741542033 | D13: 120
A14: Аппарат 1и | B14: Яиуш | C14: 741542034 | D14: 100
A15: Аппарат 1и | B15: Яиуш | C15: 741542035 | D15: 150
A16: Аппарат 1м | B16: Ря | C16: 8623969-01 | D16: 30
A17: Аппарат 1и | B17: Ря | C17: 8056892 | D17: 86
A18: Аппарат 1и | B18: Яиуш | C18: 745227001 | D18: 490
A19: Аппарат 1и | B19: Увир | C19: 735412137 | D19: 58
A20: Аппарат 2и | B20: Лдиг | C20: 741124785 | D20: 49
A21: Т 231-03 | B21: Увир | C21: 301172215 | D21: 68
A22: Т 231-03 | B22: Яиуш | C22: 301231009 | D22: 20
A23: Т 231-03 | B23: Яиуш | C23: 301231009 | D23: 20
A24: Т 231-03 | B24: Яиуш | C24: 301112016 | D24: 40
A25: Т 231-03 | B25: Лдиг | C25: 754463346 | D25: 8
A26: Т 231-03 | B26: Яиуш | C26: 301112015 | D26: 20
A27: Ва 119м | B27: Яиуш | C27: 745532053 | D27: 174
A28: Ва 119 | B28: Яиуш | C28: 301524011 | D28: 165
A29: Ва 119 | B29: Рж | C29: 8614028 | D29: 64
A30: Т 625 | B30: Риву | C30: 713321036-02 | D30: 10
A31: Т 625 | B31: Риву | C31: 741615109 | D31: 10
A32: Т 625 | B32: Риву | C32: 301412321 | D32: 9
A33: Т 625 | B33: Риву | C33: 745321114 | D33: 19 | E33: кат
A34: Т 625 | B34: Риву | C34: 671342233 | D34: 21 | E34: кат
A35: Т 625 | B35: Риву | C35: 671342028-01 | D35: 18 | E35: кат
A36: Т 625 | B36: Риву | C36: 301222201 | D36: 7
A37: Т 625 | B37: Риву | C37: 671342078 | D37: 55 | E37: кат
A38: П244 | B38: Яиуш | C38: 735412073 | D38: 28
A39: П 244 | B39: Яиуш | C39: 745322071 | D39: 8
A40: П 244 | B40: Яиуш | C40: 745422053 | D40: 50
A41: П 244 | B41: Яиуш | C41: 745322059 | D41: 44
A42: П 244 | B42: Яиуш | C42: 745322043 | D42: 5
A43: П 244 | B43: Яиуш | C43: 745352039 | D43: 45
A44: П 244 | B44: Яиуш | C44: 745352038 | D44: 30
A45: П 244 | B45: Увир | C45: 304121009 | D45: 6
A46: П 244 | B46: Увир | C46: 304121019 | D46: 18
A47: П 244 | B47: Увир | C47: 304121011 | D47: 6
A48: П 244 | B48: Яиуш | C48: 746122012 | D48: 24
A49: П 244 | B49: Яиуш | C49: 301233015 | D49: 6
A50: П 244 | B50: Яиуш | C50: 301233027 | D50: 6
A51: П 244 | B51: Яиуш | C51: 745532029 | D51: 6
A52: П 244 | B52: Яиуш | C52: 745384001 | D52: 21
A53: П 244 | B53: Яиуш | C53: 301561017-01 | D53: 6
A54: П 244 | B54: Яиуш | C54: 301561017 | D54: 6
A55: П 244 | B55: Яиуш | C55: 301561018-01 | D55: 5
A56: П 244 | B56: Яиуш | C56: 301561018 | D56: 4
A57: П 244 | B57: Увир | C57: 301244058 | D57: 6
A58: П 244 | B58: Яиуш | C58: 301233027 | D58: 6
A59: П 244 | B59: Яиуш | C59: 301233015 | D59: 6
A60: П 244 | B60: Яиуш | C60: 301233013 | D60: 6
A61: П 244 | B61: Яиуш | C61: 741134185 | D61: 48
A62: П 244 | B62: Яиуш | C62: 741134185-01 | D62: 33
A63: П 244 | B63: Яиуш | C63: 745422046 | D63: 31
A64: П 244 | B64: Яиуш | C64: 741134115 | D64: 25
A65: П 244 | B65: Увир | C65: 735312256 | D65: 85
A66: П 637 | B66: Лдиг | C66: 735214065 | D66: 25
A67: Т 208 | B67: Рж | C67: 6112168 | D67: 20
A68: Т 208 | B68: Рж | C68: 8020095 | D68: 100
A69: Т 208 | B69: Рж | C69: 8070349 | D69: 270
A70: П 636 | B70: Лдиг | C70: 735214064 | D70: 6
A71: П 636 | B71: Лдиг | C71: 743232002-1 | D71: 107
A72: П 636 | B72: Лдиг | C72: 743232002 | D72: 65
A73: П 636 | B73: Лдиг | C73: 741424072 | D73: 33
A74: П 636 | B74: Лдиг | C74: 741134222-2 | D74: 38
A75: П 636 | B75: Лдиг | C75: 741134222-3 | D75: 32
A76: П 636 | B76: Лдиг | C76: 305514005 | D76: 15
A77: П 636 | B77: Лдиг | C77: 741428024 | D77: 6
A78: П 636 | B78: Яиуш | C78: 735213010-18 | D78: 16
A79: П 636 | B79: Яиуш | C79: 735213010-31 | D79: 16
A80: П 636 | B80: Яиуш | C80: 735213010-23 | D80: 17
A81: П 636 | B81: Яиуш | C81: 735213010-16 | D81: 18
A82: П 636 | B82: Яиуш | C82: 735213010-21 | D82: 15
A83: П 636 | B83: Яиуш | C83: 735213010-24 | D83: 17
A84: П 636 | B84: Яиуш | C84: 735213010-20 | D84: 34
A85: П 636 | B85: Яиуш | C85: 735213010-29 | D85: 6
A86: П 636 | B86: Яиуш | C86: 735213010-26 | D86: 18
A87: П 636 | B87: Лдиг | C87: 301261046-01 | D87: 3
A88: П 636 | B88: Лдиг | C88: 301261046 | D88: 6
A89: П 636 | B89: Яиуш | C89: 735213010-19 | D89: 17
A90: Монолог | B90: Яиуш | C90: 725325002 | D90: 10
A91: Монолог | B91: Ксди | C91: 301232001 | D91: 18
A92: Уи 425 | B92: Яиуш | C92: 301412025 | D92: 2
A93: Фзс | B93: 2а | C93: 5752006 | D93: 80
A94: Фзс | B94: 2а | C94: 5752006 | D94: 70
A95: Фзс | B95: 2а | C95: 6112207 | D95: 60
A96: Угломер | B96: Рж | C96: 8813478-92 | D96: 126 | E96: лак
A97: Уа 158 | B97: Лдиг | C97: 731141002 | D97: 153
A98: Уа 158 | B98: Лдиг | C98: 735211003 | D98: 280
A99: 3 Баз | B99: Рж | C99: 8671024-02 | D99: 159
A100: 3 Баз | B100: Рж | C100: 8671024-2 | D100: 159
A101: 3 Баз | B101: Рж | C101: 4161245-9 | D101: 31
A102: 3 Баз | B102: Рж | C102: 7840366 | D102: 3000
A103: Са 232 | B103: Рж | C103: 8040127 | D103: 79
A104: Са 232 | B104: Рж | C104: 8040129 | D104: 10
A105: Са 232 | B105: Риву | C105: 735212046-01 | D105: 78
A106: Весна | B106: Рж | C106: 6112168 | D106: 20
A107: Весна | B107: Рж | C107: 6112175 | D107: 55
A108: Весна | B108: Рж | C108: 8020133 | D108: 77
A109: Ктс | B109: Яиуш | C109: 301172006 | D109: 47
A110: Ктс | B110: Яиуш | C110: 735414011 | D110: 18
A111: Уа 363 | B111: Яиуш | C111: 301172006 | D111: 31
A112: Ат 3104 | B112: Яиуш | C112: 735314041 | D112: 30
A113: Ат 3132 | B113: Рж | C113: 8075273 | D113: 2
A114: Ат 3132 | B114: Ря | C114: 8803796-01 | D114: 260
A115: Ау 3117 | B115: Яиуш | C115: 301172009 | D115: 2
A116: Ат 3104 | B116: Яиуш | C116: 741542066 | D116: 30
A117: Ат 3104 | B117: Яиуш | C117: 741542065 | D117: 30
A118: Б 9м2 | B118: Яиуш | C118: 745226013-01 | D118: 127
A119: Стенд | C119: 11-130-3 | D119: 10
A120: Стенд | C120: 986-44612-11 | D120: 1
A121: Стенд | C121: 12-1426-1 | D121: 1
A122: Стенд | C122: 986-145468-2 | D122: 1
A123: Стенд | C123: 6-306-1 | D123: 1
A124: Стенд | C124: 13-541-1 | D124: 10
A125: Стенд | C125: 976-145763 | D125: 8
A126: Стенд | C126: 986-44612-64 | D126: 3
A127: Стенд | C127: 986-44612-37 | D127: 1

Sheet декабрь
B1: наименование дсе | C1: ОСТАТОК | D1: ПРИХОД | G1: РАСХОД
D2: кол-во шт | E2: цех | F2: дата | G2: кол-во шт | H2: цех | I2: дата
B3: ря6.174.866 | C3: =IF(D3,D3-SUM(G3:G3),"") -> 22 | D3: 27 | E3: 16 | F3: 2014-12-12T13:25:52 | G3: 5 | I3: 2014-12-14T15:56:52
B4: ря6.174.866 | C4: =IF(D4,D4-SUM(G4:G4),"") ->  | G4: 2 | I4: 2014-12-14T16:08:54 | J4: конопкой строка вставила строчку с наименованием, ввела расход в G4, а остаток в С | R4: 3 не пересчитался
B5: рж6.112.168-01 | C5: =IF(D5,D5-SUM(G5:G5),"") -> 20 | D5: 20 | E5: 16 | F5: 2014-12-14T16:07:46
B6: 2а6.752.006 | C6: =IF(D6,D6-SUM(G6:G6),"") -> 26 | D6: 26 | E6: 7 | F6: 2014-12-14T16:17:39
B7: яиуш.301231.009 | C7: =IF(D7,D7-SUM(G7:G7),"") ->  | G7: 20 | H7: 7 | I7: 2014-12-01T14:35:44
B8: риву.671342.028-01 | C8: =IF(D8,D8-SUM(G8:G8),"") ->  | G8: 18 | H8: 7 | I8: 2014-12-01T14:38:50
B9: риву.671342.058-01 | C9: =IF(D9,D9-SUM(G9:G9),"") ->  | G9: 36 | H9: 7 | I9: 2014-12-01T14:40:15
B10: 122.3405010.200-02 | C10: =IF(D10,D10-SUM(G10:G10),"") ->  | G10: 72 | H10: 12 | I10: 2014-12-01T14:42:03
B11: 121.3405010.200-03 | C11: =IF(D11,D11-SUM(G11:G11),"") ->  | G11: 124 | H11: 12 | I11: 2014-12-12T15:07:34
B12: 986-44612-11 | C12: =IF(D12,D12-SUM(G12:G12),"") ->  | G12: 1 | H12: 5 | I12: 2014-12-12T15:19:52
B13: яиуш.745384.001 | C13: =IF(D13,D13-SUM(G13:G13),"") ->  | G13: 21 | H13: уч.97 | I13: 2014-12-12T15:24:36
B14: яиуш.745384.001 | C14: =IF(D14,D14-SUM(G14:G14),"") ->  | I14: 2014-12-12T15:24:41
B15: яиуш.741128.144 | C15: =IF(D15,D15-SUM(G15:G15),"") ->  | G15: 1 | H15: уч.97 | I15: 2014-12-12T15:21:13
B16: яиуш.741515.007-01 | C16: =IF(D16,D16-SUM(G16:G16),"") ->  | G16: 6 | H16: 7 | I16: 2014-12-01T14:56:48
B17: яиуш.301233.006 | C17: =IF(D17,D17-SUM(G17:G17),"") ->  | G17: 6 | H17: 5 | I17: 2014-12-12T15:24:57
B18: яиуш.741542.034 | C18: =IF(D18,D18-SUM(G18:G18),"") ->  | G18: 54 | H18: 7 | I18: 2014-12-01T15:00:42
B19: яиуш.741542.032 | C19: =IF(D19,D19-SUM(G19:G19),"") ->  | G19: 2 | H19: 7 | I19: 2014-12-01T15:07:21
B20: яиуш.741542.035 | C20: =IF(D20,D20-SUM(G20:G20),"") ->  | G20: 5 | H20: 7 | I20: 2014-12-01T15:09:02
B21: яиуш.301112.002 | C21: =IF(D21,D21-SUM(G21:G21),"") ->  | G21: 78 | H21: 4 | I21: 2014-12-01T15:10:05
B22: яиуш.301112.001 | C22: =IF(D22,D22-SUM(G22:G22),"") ->  | G22: 80 | H22: 4 | I22: 2014-12-01T15:11:15
B23: 122.3405010.200-02 | C23: =IF(D23,D23-SUM(G23:G23),"") ->  | G23: 60 | H23: 12 | I23: 2014-12-01T15:12:12
B24: 121.3405010.200-03 | C24: =IF(D24,D24-SUM(G24:G24),"") ->  | G24: 70 | H24: 12 | I24: 2014-12-01T15:12:55
B25: лдиг743212.006 | C25: =IF(D25,D25-SUM(G25:G25),"") -> 200 | D25: 200 | E25: гал | F25: 2014-12-01T15:29:24
B26: рж6.123.093 | C26: =IF(D26,D26-SUM(G26:G26),"") -> 20 | D26: 20 | E26: 16 | F26: 2014-12-01T15:34:59
B27: 122.3405010.200-02 | C27: =IF(D27,D27-SUM(G27:G27),"") ->  | G27: 72 | H27: 12 | I27: 2014-12-01T15:40:28
B28: лдиг.741428.021 | C28: =IF(D28,D28-SUM(G28:G28),"") -> 12 | D28: 12 | E28: 16 | F28: 2014-12-02T08:53:04
B29: яиуш.741134.262лак | C29: =IF(D29,D29-SUM(G29:G29),"") -> 16 | D29: 16 | E29: 5 | F29: 2014-12-02T08:56:13
B30: яиуш.301112.016 | C30: =IF(D30,D30-SUM(G30:G30),"") -> 21 | D30: 21 | E30: 16 | F30: 2014-12-02T08:58:59
B31: 2а5.752.006 | C31: =IF(D31,D31-SUM(G31:G31),"") ->  | G31: 105 | H31: 7 | I31: 2014-12-02T09:05:48
B32: лдиг.741428.021 | C32: =IF(D32,D32-SUM(G32:G32),"") ->  | G32: 12 | H32: 5 | I32: 2014-12-02T09:08:11
B33: яиуш.731192.010 | C33: =IF(D33,D33-SUM(G33:G33),"") ->  | G33: 3 | H33: 5 | I33: 2014-12-02T09:11:32
B34: яиуш.735221.007 | C34: =IF(D34,D34-SUM(G34:G34),"") -> 62 | D34: 62 | E34: гал | F34: 2014-12-02T12:32:03
B35: яиуш.301112.016 | C35: =IF(D35,D35-SUM(G35:G35),"") -> 21 | D35: 21 | E35: 16 | F35: 2014-12-02T12:34:48
B36: яиуш.741234.058 | C36: =IF(D36,D36-SUM(G36:G36),"") -> 83 | D36: 83 | E36: 5 | F36: 2014-12-02T12:36:28
B37: лдиг.741428.022 | C37: =IF(D37,D37-SUM(G37:G37),"") -> 9 | D37: 9 | E37: 16 | F37: 2014-12-02T12:45:18
B38: яиуш.301231.024 | C38: =IF(D38,D38-SUM(G38:G38),"") -> 6 | D38: 6 | E38: 5 | F38: 2014-12-02T12:46:47
B39: яиуш.301233.019 | C39: =IF(D39,D39-SUM(G39:G39),"") -> 6 | D39: 6 | E39: 5 | F39: 2014-12-02T12:48:09
B40: яиуш.741542.033 | C40: =IF(D40,D40-SUM(G40:G40),"") ->  | G40: 19 | H40: 7 | I40: 2014-12-02T12:50:22
B41: яиуш.301233.015 | C41: =IF(D41,D41-SUM(G41:G41),"") ->  | G41: 6 | H41: 5 | I41: 2014-12-02T12:52:07
B42: яиуш.741542.065 | C42: =IF(D42,D42-SUM(G42:G42),"") ->  | G42: 7 | H42: 7 | I42: 2014-12-02T12:53:28
B43: яиуш.741542.034 | C43: =IF(D43,D43-SUM(G43:G43),"") ->  | G43: 17 | H43: 7 | I43: 2014-12-02T12:54:32
B44: увир.301224.058 | C44: =IF(D44,D44-SUM(G44:G44),"") ->  | G44: 6 | H44: 5 | I44: 2014-12-02T12:55:52
B45: яиуш.301172.006 | C45: =IF(D45,D45-SUM(G45:G45),"") ->  | G45: 1 | H45: 7 | I45: 2014-12-02T12:57:34
B46: рж8.810.261лак1раз | C46: =IF(D46,D46-SUM(G46:G46),"") ->  | G46: 63 | H46: 16 | I46: 2014-12-02T13:00:32
B47: 122.3405010.200-02 | C47: =IF(D47,D47-SUM(G47:G47),"") ->  | G47: 139 | I47: 2014-12-02T13:01:54
B48: яиуш.301532.009 | C48: =IF(D48,D48-SUM(G48:G48),"") ->  | G48: 33 | I48: 2014-12-02T13:09:57
B49: яиуш.745535.023 | C49: =IF(D49,D49-SUM(G49:G49),"") -> 9 | D49: 9 | E49: гал | F49: 2014-12-02T13:25:08
B50: ря8.075.325 | C50: =IF(D50,D50-SUM(G50:G50),"") -> 57 | D50: 57 | E50: гал | F50: 2014-12-02T13:26:16
B51: риву.305153.007 | C51: =IF(D51,D51-SUM(G51:G51),"") -> 105 | D51: 105 | E51: 16 | F51: 2014-12-02T14:29:46
B52: ря6.179.652 | C52: =IF(D52,D52-SUM(G52:G52),"") -> 5 | D52: 5 | E52: 16 | F52: 2014-12-02T14:31:23
B53: рж6.123.141 | C53: =IF(D53,D53-SUM(G53:G53),"") -> 15 | D53: 15 | E53: 16 | F53: 2014-12-02T14:32:33
B54: рж6.123.146 | C54: =IF(D54,D54-SUM(G54:G54),"") -> 40 | D54: 40 | E54: 16 | F54: 2014-12-02T14:35:05
B55: яиуш.741542.065 | C55: =IF(D55,D55-SUM(G55:G55),"") ->  | G55: 1 | H55: 7 | I55: 2014-12-02T14:36:53
B56: яиуш.735224.010-18 | C56: =IF(D56,D56-SUM(G56:G56),"") ->  | G56: 16 | H56: 7 | I56: 2014-12-02T14:39:49
B57: яиуш.735224.010-21 | C57: =IF(D57,D57-SUM(G57:G57),"") ->  | G57: 15 | H57: 7 | I57: 2014-12-02T14:41:03
B58: яиуш.735224.010-19 | C58: =IF(D58,D58-SUM(G58:G58),"") ->  | G58: 17 | H58: 7 | I58: 2014-12-02T14:42:04
B59: яиуш.735224.010-29 | C59: =IF(D59,D59-SUM(G59:G59),"") ->  | G59: 6 | H59: 7 | I59: 2014-12-02T14:43:15
B60: яиуш.735224.010-16 | C60: =IF(D60,D60-SUM(G60:G60),"") ->  | G60: 18 | H60: 7 | I60: 2014-12-02T14:44:22
B61: яиуш.735224.010-23 | C61: =IF(D61,D61-SUM(G61:G61),"") ->  | G61: 17 | H61: 7 | I61: 2014-12-02T14:47:06
B62: яиуш.735224.010-24 | C62: =IF(D62,D62-SUM(G62:G62),"") ->  | G62: 17 | H62: 7 | I62: 2014-12-02T14:48:05
B63: яиуш.735224.010-31 | C63: =IF(D63,D63-SUM(G63:G63),"") ->  | G63: 16 | H63: 7 | I63: 2014-12-02T14:48:59
B64: яиуш.735224.010-20 | C64: =IF(D64,D64-SUM(G64:G64),"") ->  | G64: 34 | H64: 7 | I64: 2014-12-02T14:49:51
B65: яиуш.735224.010-26 | C65: =IF(D65,D65-SUM(G65:G65),"") ->  | G65: 18 | H65: 7 | I65: 2014-12-02T14:50:45
B66: ря6.203.659 | C66: =IF(D66,D66-SUM(G66:G66),"") -> 105 | D66: 105 | E66: 16 | F66: 2014-12-03T12:36:54
B67: рж8.050.848 | C67: =IF(D67,D67-SUM(G67:G67),"") -> 33 | D67: 33 | E67: гал | F67: 2014-12-03T12:38:41
B68: яиуш.741682.008 | C68: =IF(D68,D68-SUM(G68:G68),"") -> 42 | D68: 42 | E68: гал | F68: 2014-12-03T12:40:11
B69: яиуш.735535.024 | C69: =IF(D69,D69-SUM(G69:G69),"") -> 1 | D69: 1 | E69: 5 | F69: 2014-12-03T12:41:14
B70: шс4.750.425 | C70: =IF(D70,D70-SUM(G70:G70),"") -> 7 | D70: 7 | E70: 7 | F70: 2014-12-03T12:42:06
B71: риву.671121.028 | C71: =IF(D71,D71-SUM(G71:G71),"") -> 17 | D71: 17 | E71: 7 | F71: 2014-12-03T12:43:25
B72: рж7.840.366 | C72: =IF(D72,D72-SUM(G72:G72),"") ->  | G72: 1.080 | H72: 7 | I72: 2014-12-03T12:48:53
B73: яиуш.754321.025лак | C73: =IF(D73,D73-SUM(G73:G73),"") ->  | G73: 16 | H73: 7 | I73: 2014-12-03T12:51:58
B74: яиуш.301412.025 | C74: =IF(D74,D74-SUM(G74:G74),"") ->  | G74: 2 | H74: 7 | I74: 2014-12-03T12:53:43
B75: яиуш.741555.015 | C75: =IF(D75,D75-SUM(G75:G75),"") ->  | G75: 44 | H75: 7 | I75: 2014-12-03T12:54:49
B76: увир.301231.022 | C76: =IF(D76,D76-SUM(G76:G76),"") ->  | G76: 6 | H76: 5 | I76: 2014-12-03T12:56:02
B77: 986-44612-63 | C77: =IF(D77,D77-SUM(G77:G77),"") -> 1 | D77: 1 | E77: 5 | F77: 2014-12-03T15:40:41
B78: увир.742114.002 | C78: =IF(D78,D78-SUM(G78:G78),"") -> 16 | D78: 16 | E78: 16 | F78: 2014-12-03T15:41:58
B79: увир.742114.002-01 | C79: =IF(D79,D79-SUM(G79:G79),"") -> 15 | D79: 15 | E79: 16 | F79: 2014-12-03T15:43:23
B80: яиуш.731192.010 | C80: =IF(D80,D80-SUM(G80:G80),"") -> 3 | D80: 3 | E80: 5 | F80: 2014-12-04T12:05:56
B81: лдиг.741428.021 | C81: =IF(D81,D81-SUM(G81:G81),"") -> 12 | D81: 12 | E81: 5 | F81: 2014-12-04T12:07:17
B82: рж8.810.261лак2раз | C82: =IF(D82,D82-SUM(G82:G82),"") -> 126 | D82: 126 | E82: 16 | F82: 2014-12-04T12:09:21
B83: увир.301224.051 | C83: =IF(D83,D83-SUM(G83:G83),"") -> 6 | D83: 6 | E83: 5 | F83: 2014-12-04T12:11:47
B84: увир.301224.057 | C84: =IF(D84,D84-SUM(G84:G84),"") -> 6 | D84: 6 | E84: 5 | F84: 2014-12-04T12:12:51
B85: яиуш.746114.006 | C85: =IF(D85,D85-SUM(G85:G85),"") -> 10 | D85: 10 | E85: 16 | F85: 2014-12-04T12:13:59
B86: 11-130-4 | C86: =IF(D86,D86-SUM(G86:G86),"") -> 2 | D86: 2 | E86: 5 | F86: 2014-12-04T12:14:40
B87: яиуш.301172.009 | C87: =IF(D87,D87-SUM(G87:G87),"") -> 2 | D87: 2 | E87: 7 | F87: 2014-12-04T12:18:59
B88: рж8.040.128 | C88: =IF(D88,D88-SUM(G88:G88),"") ->  | G88: 40 | H88: 7 | I88: 2014-12-04T12:20:26
B89: рж8.810.260лак2раз | C89: =IF(D89,D89-SUM(G89:G89),"") ->  | G89: 105 | H89: 7 | I89: 2014-12-04T12:22:18
B90: яиуш.741134262лак2раз | C90: =IF(D90,D90-SUM(G90:G90),"") ->  | G90: 16 | H90: 7 | I90: 2014-12-04T12:26:12
B91: 122.3405010.200-02 | C91: =IF(D91,D91-SUM(G91:G91),"") ->  | G91: 48 | H91: 12 | I91: 2014-12-04T12:27:19
B92: лдиг.735225.001 | C92: =IF(D92,D92-SUM(G92:G92),"") ->  | G92: 145 | H92: 7 | I92: 2014-12-04T12:28:29
B93: яиуш.735414.011 | C93: =IF(D93,D93-SUM(G93:G93),"") ->  | G93: 18 | H93: 7 | I93: 2014-12-04T12:29:26
B94: яиуш.301233.019 | C94: =IF(D94,D94-SUM(G94:G94),"") ->  | G94: 6 | H94: 5 | I94: 2014-12-04T15:55:06
B95: ря6.174.866 | C95: =IF(D95,D95-SUM(G95:G95),"") ->  | G95: 20 | H95: 7 | I95: 2014-12-04T15:56:00
B96: ря6.174.865 | C96: =IF(D96,D96-SUM(G96:G96),"") ->  | G96: 23 | H96: 7 | I96: 2014-12-04T15:56:40
B97: 11-130-1 | C97: =IF(D97,D97-SUM(G97:G97),"") -> 4 | D97: 4 | E97: 5 | F97: 2014-12-04T15:57:57
B98: увир.304121.007 | C98: =IF(D98,D98-SUM(G98:G98),"") -> 6 | D98: 6 | E98: 5 | F98: 2014-12-04T15:58:44
B99: увир.301172.215 | C99: =IF(D99,D99-SUM(G99:G99),"") -> 111 | D99: 111 | E99: 16 | F99: 2014-12-04T16:00:35
B100: рж8.060.223 | C100: =IF(D100,D100-SUM(G100:G100),"") -> 30 | D100: 30 | E100: 16 | F100: 2014-12-04T16:01:35
B101: рж8.060.224 | C101: =IF(D101,D101-SUM(G101:G101),"") -> 30 | D101: 30 | E101: 16 | F101: 2014-12-04T16:02:58
B102: рж6.179.151 | C102: =IF(D102,D102-SUM(G102:G102),"") -> 16 | D102: 16 | E102: 16 | F102: 2014-12-04T16:04:08
B103: риву.671342.041кат | C103: =IF(D103,D103-SUM(G103:G103),"") -> 20 | D103: 20 | E103: 7 | F103: 2014-12-04T16:05:29
B104: риву.671342.154кат | C104: =IF(D104,D104-SUM(G104:G104),"") -> 80 | D104: 80 | E104: 7 | F104: 2014-12-04T16:06:21
B105: шс4.750.425 | C105: =IF(D105,D105-SUM(G105:G105),"") -> 13 | D105: 13 | E105: 7 | F105: 2014-12-04T16:07:23
B106: ря8.075.329 | C106: =IF(D106,D106-SUM(G106:G106),"") -> 53 | D106: 53 | E106: гал | F106: 2014-12-05T12:17:49
B107: рж8.050.858 | C107: =IF(D107,D107-SUM(G107:G107),"") -> 16 | D107: 16 | E107: гал | F107: 2014-12-05T12:21:00
B108: яиуш.301233.027 | C108: =IF(D108,D108-SUM(G108:G108),"") ->  | G108: 6 | H108: 5 | I108: 2014-12-05T12:22:46
B109: яиуш.741124.002 | C109: =IF(D109,D109-SUM(G109:G109),"") ->  | G109: 130 | H109: 16 | I109: 2014-12-05T12:23:33
B110: яиуш.301112.002 | C110: =IF(D110,D110-SUM(G110:G110),"") ->  | G110: 1 | H110: 4 | I110: 2014-12-05T12:24:30
B111: рж8.810.261лак2раз | C111: =IF(D111,D111-SUM(G111:G111),"") ->  | G111: 126 | H111: 7 | I111: 2014-12-05T12:25:48
B112: ря8.803.297лак | C112: =IF(D112,D112-SUM(G112:G112),"") ->  | G112: 100 | H112: 7 | I112: 2014-12-05T12:26:57
B113: рж8.810.261лак1раз | C113: =IF(D113,D113-SUM(G113:G113),"") ->  | G113: 37 | H113: 16 | I113: 2014-12-05T12:28:03
B114: яиуш.301112.015 | C114: =IF(D114,D114-SUM(G114:G114),"") ->  | G114: 19 | H114: 7 | I114: 2014-12-05T12:29:15
B115: яиуш.741542.035 | C115: =IF(D115,D115-SUM(G115:G115),"") ->  | G115: 50 | H115: 7 | I115: 2014-12-05T12:30:10
B116: яиуш.745522.032-01 | C116: =IF(D116,D116-SUM(G116:G116),"") ->  | G116: 18 | H116: 7 | I116: 2014-12-05T12:31:10
B117: яиуш.745522.032 | C117: =IF(D117,D117-SUM(G117:G117),"") ->  | G117: 18 | H117: 7 | I117: 2014-12-05T12:31:52
B118: яиуш.745312.043 | C118: =IF(D118,D118-SUM(G118:G118),"") ->  | G118: 5 | H118: 5 | I118: 2014-12-05T12:32:43
B119: яиуш.301713.011 | C119: =IF(D119,D119-SUM(G119:G119),"") -> 12 | D119: 12 | E119: гал | F119: 2014-12-08T12:29:48
B120: яиуш.301713.011-01 | C120: =IF(D120,D120-SUM(G120:G120),"") -> 12 | D120: 12 | E120: гал | F120: 2014-12-08T12:31:03
B121: ря8.024.722 | C121: =IF(D121,D121-SUM(G121:G121),"") -> 60 | D121: 60 | E121: гал | F121: 2014-12-08T12:32:07
B122: яиуш.301233.021 | C122: =IF(D122,D122-SUM(G122:G122),"") -> 6 | D122: 6 | E122: 5 | F122: 2014-12-08T12:33:02
B123: яиуш.741124.171лак2раз | C123: =IF(D123,D123-SUM(G123:G123),"") -> 188 | D123: 188 | E123: 16 | F123: 2014-12-08T12:34:44
B124: рж8.050.848 | C124: =IF(D124,D124-SUM(G124:G124),"") ->  | G124: 31 | H124: 7 | I124: 2014-12-08T12:36:35
B125: яиуш.301231.029 | C125: =IF(D125,D125-SUM(G125:G125),"") ->  | G125: 6 | H125: 5 | I125: 2014-12-08T12:37:25
B126: яиуш.301112.015 | C126: =IF(D126,D126-SUM(G126:G126),"") ->  | G126: 13 | H126: 7 | I126: 2014-12-08T12:38:33
B127: рж8.040.129 | C127: =IF(D127,D127-SUM(G127:G127),"") ->  | G127: 77 | H127: 7 | I127: 2014-12-08T12:39:50
B128: 122.3405010.200-03 | C128: =IF(D128,D128-SUM(G128:G128),"") ->  | G128: 121 | H128: 12 | I128: 2014-12-08T12:41:24
B129: яиуш.741134.185 | C129: =IF(D129,D129-SUM(G129:G129),"") ->  | G129: 34 | H129: 7 | I129: 2014-12-08T12:42:17
B130: рж6.112.175 | C130: =IF(D130,D130-SUM(G130:G130),"") ->  | G130: 33 | H130: 7 | I130: 2014-12-08T12:44:37
B131: шс4.750.425кат | C131: =IF(D131,D131-SUM(G131:G131),"") ->  | G131: 7 | H131: 7 | I131: 2014-12-08T12:45:51
B132: яиуш.735535.024 | C132: =IF(D132,D132-SUM(G132:G132),"") ->  | G132: 1 | H132: 5 | I132: 2014-12-08T12:46:53
B133: 121.3405010.200-03 | C133: =IF(D133,D133-SUM(G133:G133),"") -> 774 | D133: 774 | E133: гал | F133: 2014-12-08T15:52:25
B134: 122.3405010.200-02 | C134: =IF(D134,D134-SUM(G134:G134),"") -> 36 | D134: 36 | E134: гал | F134: 2014-12-08T15:53:28
B135: лдиг.741428.022 | C135: =IF(D135,D135-SUM(G135:G135),"") -> 9 | D135: 9 | E135: 16 | F135: 2014-12-08T15:54:25
B136: ря6.174.866 | C136: =IF(D136,D136-SUM(G136:G136),"") -> 11 | D136: 11 | E136: 16 | F136: 2014-12-08T15:55:13
B137: риву.301251.172 | C137: =IF(D137,D137-SUM(G137:G137),"") -> 300 | D137: 300 | E137: 16 | F137: 2014-12-08T15:56:16
B138: рж8.050.818 | C138: =IF(D138,D138-SUM(G138:G138),"") ->  | G138: 176 | H138: 7 | I138: 2014-12-08T15:57:25
B139: 121.3405010.200-03 | C139: =IF(D139,D139-SUM(G139:G139),"") ->  | G139: 216 | H139: 12 | I139: 2014-12-08T15:58:13
B140: лдиг.741428.021 | C140: =IF(D140,D140-SUM(G140:G140),"") ->  | G140: 9 | H140: 7 | I140: 2014-12-08T16:00:41
B141: яиуш.301233.023 | C141: =IF(D141,D141-SUM(G141:G141),"") -> 6 | D141: 6 | E141: 5 | F141: 2014-12-09T12:19:22
B142: яиуш.301233.025 | C142: =IF(D142,D142-SUM(G142:G142),"") -> 6 | D142: 6 | E142: 5 | F142: 2014-12-09T12:19:59
B143: яиуш.741515.010 | C143: =IF(D143,D143-SUM(G143:G143),"") -> 150 | D143: 150 | E143: 16 | F143: 2014-12-09T12:20:54
B144: увир.301172.215 | C144: =IF(D144,D144-SUM(G144:G144),"") -> 34 | D144: 34 | E144: 16 | F144: 2014-12-09T12:22:13
B145: рж8.060.223 | C145: =IF(D145,D145-SUM(G145:G145),"") -> 30 | D145: 30 | E145: 16 | F145: 2014-12-09T12:23:07
B146: рж8.060.224 | C146: =IF(D146,D146-SUM(G146:G146),"") -> 30 | D146: 30 | E146: 16 | F146: 2014-12-09T12:23:52
B147: яиуш.301112.016 | C147: =IF(D147,D147-SUM(G147:G147),"") -> 21 | D147: 21 | E147: 16 | F147: 2014-12-09T12:24:41
B148: яиуш.741244.017лак | C148: =IF(D148,D148-SUM(G148:G148),"") -> 100 | D148: 100 | E148: пластм | F148: 2014-12-09T12:25:52
B149: рж8.675.047 | C149: =IF(D149,D149-SUM(G149:G149),"") -> 100 | D149: 100 | E149: 16 | F149: 2014-12-09T12:27:00
B150: яиуш.725325.002 | C150: =IF(D150,D150-SUM(G150:G150),"") ->  | G150: 5 | H150: 7 | I150: 2014-12-09T12:28:13
B151: виур.735391.001-2 | C151: =IF(D151,D151-SUM(G151:G151),"") ->  | G151: 800 | H151: 7 | I151: 2014-12-09T12:30:08
B152: лдиг.741428.021 | C152: =IF(D152,D152-SUM(G152:G152),"") ->  | G152: 3 | H152: 7 | I152: 2014-12-09T12:32:21
B153: 121.3405010.2000-03 | C153: =IF(D153,D153-SUM(G153:G153),"") ->  | G153: 216 | H153: 12 | I153: 2014-12-09T12:33:41
B154: риву.671121.028кат | C154: =IF(D154,D154-SUM(G154:G154),"") ->  | G154: 17 | H154: 7 | I154: 2014-12-09T12:35:48
B155: рж6.174.866 | C155: =IF(D155,D155-SUM(G155:G155),"") ->  | G155: 4 | H155: 7 | I155: 2014-12-09T12:36:33
B156: рж6.174.865 | C156: =IF(D156,D156-SUM(G156:G156),"") ->  | G156: 3 | H156: 7 | I156: 2014-12-09T12:37:15
B157: рж8.034.119 | C157: =IF(D157,D157-SUM(G157:G157),"") ->  | G157: 18 | H157: 7 | I157: 2014-12-09T12:38:03
B158: рж8.020.095 | C158: =IF(D158,D158-SUM(G158:G158),"") ->  | G158: 100 | H158: 7 | I158: 2014-12-09T12:38:51
B159: риву.671342.041кат | C159: =IF(D159,D159-SUM(G159:G159),"") ->  | G159: 20 | H159: 7 | I159: 2014-12-09T12:39:43
B160: шс4.750.425кат | C160: =IF(D160,D160-SUM(G160:G160),"") ->  | G160: 13 | H160: 7 | I160: 2014-12-09T12:40:50
B161: 121.3405010.200-03 | C161: =IF(D161,D161-SUM(G161:G161),"") ->  | G161: 146 | H161: 12 | I161: 2014-12-09T12:41:47
B162: 2а5.752.006кат | C162: =IF(D162,D162-SUM(G162:G162),"") ->  | G162: 55 | H162: 7 | I162: 2014-12-09T12:43:19
B163: яиуш.741124.390лак | C163: =IF(D163,D163-SUM(G163:G163),"") ->  | G163: 542 | H163: 7 | I163: 2014-12-09T15:31:57
B164: яиуш.301233.010 | C164: =IF(D164,D164-SUM(G164:G164),"") ->  | G164: 6 | H164: 5 | I164: 2014-12-09T15:32:38
B165: рж6.112160 | C165: =IF(D165,D165-SUM(G165:G165),"") ->  | G165: 41 | H165: 16 | I165: 2014-12-09T15:33:22
B166: ря8.044.574 | C166: =IF(D166,D166-SUM(G166:G166),"") ->  | G166: 41 | H166: 16 | I166: 2014-12-09T15:34:08
B167: рж6.179.151-04 | C167: =IF(D167,D167-SUM(G167:G167),"") ->  | G167: 16 | H167: 7 | I167: 2014-12-09T15:35:00
B168: 121.3405010.200-03 | C168: =IF(D168,D168-SUM(G168:G168),"") ->  | G168: 288 | H168: 12 | I168: 2014-12-09T15:35:49
B169: яиуш.303729.002 | C169: =IF(D169,D169-SUM(G169:G169),"") -> 6 | D169: 6 | E169: гал | F169: 2014-12-09T15:37:45
B170: яиуш.725325.002 | C170: =IF(D170,D170-SUM(G170:G170),"") -> 25 | D170: 25 | E170: 16 | F170: 2014-12-09T15:38:47
B171: яиуш.301412.025 | C171: =IF(D171,D171-SUM(G171:G171),"") -> 2 | D171: 2 | E171: 16 | F171: 2014-12-09T15:39:40
B172: яиуш.735221.005 | C172: =IF(D172,D172-SUM(G172:G172),"") -> 48 | D172: 48 | E172: 5 | F172: 2014-12-09T15:40:55
B173: 122.3405010.200-02 | C173: =IF(D173,D173-SUM(G173:G173),"") -> 435 | D173: 435 | E173: гал | F173: 2014-12-09T15:42:22
B174: 121.3405010.200-03 | C174: =IF(D174,D174-SUM(G174:G174),"") -> 215 | D174: 215 | E174: гал | F174: 2014-12-10T14:01:01
B175: рж8.810.261лак | C175: =IF(D175,D175-SUM(G175:G175),"") -> 72 | D175: 72 | E175: 16 | F175: 2014-12-10T14:02:41
B176: яиуш.301231.009 | C176: =IF(D176,D176-SUM(G176:G176),"") -> 20 | D176: 20 | E176: 16 | F176: 2014-12-10T14:06:05
B177: виур.735391.001-2 | C177: =IF(D177,D177-SUM(G177:G177),"") -> 480 | D177: 480 | E177: гал | F177: 2014-12-10T14:06:53
B178: увир.742214.004-01 | C178: =IF(D178,D178-SUM(G178:G178),"") -> 1 | D178: 1 | E178: сгд7 | F178: 2014-12-10T14:08:24
B179: увир.305424.004 | C179: =IF(D179,D179-SUM(G179:G179),"") -> 2 | D179: 2 | E179: 5 | F179: 2014-12-10T14:11:55
B180: яиуш.735412.072 | C180: =IF(D180,D180-SUM(G180:G180),"") ->  | G180: 30 | H180: 7 | I180: 2014-12-10T14:13:01
B181: рж6.112.160 | C181: =IF(D181,D181-SUM(G181:G181),"") ->  | G181: 2 | H181: 16 | I181: 2014-12-10T14:13:46
B182: ря8.044.574 | C182: =IF(D182,D182-SUM(G182:G182),"") ->  | G182: 2 | H182: 16 | I182: 2014-12-10T14:14:23
B183: увир.301172.215 | C183: =IF(D183,D183-SUM(G183:G183),"") ->  | G183: 111 | H183: 7 | I183: 2014-12-10T14:15:19
B184: рж8.050.848 | C184: =IF(D184,D184-SUM(G184:G184),"") ->  | G184: 2 | H184: 7 | I184: 2014-12-10T14:16:35
B185: риву.671342.154кат | C185: =IF(D185,D185-SUM(G185:G185),"") ->  | G185: 80 | H185: 7 | I185: 2014-12-10T14:17:25
B186: виур.735391.004-02 | C186: =IF(D186,D186-SUM(G186:G186),"") ->  | G186: 850 | H186: 7 | I186: 2014-12-10T14:18:17
B187: 122.3405010.200-02 | C187: =IF(D187,D187-SUM(G187:G187),"") ->  | G187: 105 | H187: 12 | I187: 2014-12-10T14:19:01
B188: 121.3405010.200-03 | C188: =IF(D188,D188-SUM(G188:G188),"") ->  | G188: 124 | H188: 12 | I188: 2014-12-10T14:19:55
B189: яиуш.741124.171лак2раз | C189: =IF(D189,D189-SUM(G189:G189),"") ->  | G189: 188 | H189: 16 | I189: 2014-12-10T14:20:40
B190: увир.301172.215 | C190: =IF(D190,D190-SUM(G190:G190),"") ->  | G190: 34 | H190: 7 | I190: 2014-12-10T14:21:42
B191: виур.735391.001-2 | C191: =IF(D191,D191-SUM(G191:G191),"") ->  | G191: 1000 | H191: 7 | I191: 2014-12-10T14:22:35
B192: ря8.075.273 | C192: =IF(D192,D192-SUM(G192:G192),"") ->  | G192: 2 | H192: 7 | I192: 2014-12-10T14:23:14
B193: лдиг.741124.335-01 | C193: =IF(D193,D193-SUM(G193:G193),"") ->  | G193: 29 | H193: 7 | I193: 2014-12-10T14:24:13
B194: рж8.040.129 | C194: =IF(D194,D194-SUM(G194:G194),"") ->  | G194: 3 | H194: 7 | I194: 2014-12-10T14:25:02
B195: 121.3405010.200-03 | C195: =IF(D195,D195-SUM(G195:G195),"") ->  | G195: 72 | H195: 12 | I195: 2014-12-10T14:26:18
B196: ря4.137.704-2 | C196: =IF(D196,D196-SUM(G196:G196),"") -> 30 | D196: 30 | E196: 16 | F196: 2014-12-11T11:13:02
B197: яиуш.301112.015 | C197: =IF(D197,D197-SUM(G197:G197),"") -> 25 | D197: 25 | E197: 16 | F197: 2014-12-11T11:14:14
B198: яиуш.741128.144 | C198: =IF(D198,D198-SUM(G198:G198),"") -> 6 | D198: 6 | E198: гал | F198: 2014-12-11T11:14:50
B199: яиуш.741128.142 | C199: =IF(D199,D199-SUM(G199:G199),"") -> 7 | D199: 7 | E199: гал | F199: 2014-12-11T11:16:21
B200: яиуш.741128.155 | C200: =IF(D200,D200-SUM(G200:G200),"") -> 8 | D200: 8 | E200: гал | F200: 2014-12-11T11:17:09
... 44 more rows
